fUSD/lending_fUSD_20250112
["ID","MTS","AMOUNT","RATE_DAILY","PERIOD"]
[348652657,1736699446735,-2536.45,0.00010271,2]
[348652658,1736699446746,-500.0,0.00010271,2]
[348652659,1736699446755,-1044.59,0.00010271,2]
[348652660,1736699446765,-502.92,0.00010271,2]
[348652661,1736699446775,-578.96,0.00010271,2]
[348652662,1736699446786,-943.76,0.00010271,2]
[348652663,1736699446796,-500.0,0.00010272,2]
[348652664,1736699446807,-716.08,0.00010344,2]
[348652665,1736699446817,-576.93,0.00010344,2]
[348652666,1736699446827,-1006.35,0.00010344,2]
[348652667,1736699446837,-1899.01,0.00010344,2]
[348652668,1736699446846,-783.3,0.00010344,2]
[348652669,1736699446855,-755.32,0.00010344,2]
[348652670,1736699446865,-1736.88,0.00010344,2]
[348652671,1736699446875,-5605.87,0.00010344,2]
[348652672,1736699446885,-590.4,0.00010344,2]
[348652673,1736699446894,-658.0,0.00010344,2]
[348652674,1736699446905,-931.95,0.00010344,2]
[348652675,1736699446916,-1262.0,0.00010344,2]
[348652676,1736699446925,-1681.3,0.00010344,2]
[348652677,1736699446934,-500.0,0.00010344,2]
[348652678,1736699446944,-2219.24,0.00010344,2]
[348652679,1736699446953,-2064.35,0.00010344,2]
[348652680,1736699446963,-1062.1,0.00010344,2]
[348652681,1736699446973,-1378.71,0.00010344,2]
[348652682,1736699446982,-730.92,0.00010344,2]
[348652683,1736699446992,-1839.64,0.00010344,2]
[348652684,1736699447001,-1154.1,0.00010344,2]
[348652685,1736699447011,-1452.82,0.00010344,2]
[348652686,1736699447021,-598.938099,0.00010344,2]
[348652687,1736699447031,-3375.84,0.00010344,2]
[348652688,1736699447041,-1458.52,0.00010344,2]
[348652689,1736699447050,-875.294878,0.00010344,2]
[348652690,1736699447059,-500.0,0.00010345,2]
[348652691,1736699447069,-500.0,0.00010345,2]
[348652692,1736699447079,-500.0,0.00010345,2]
[348652693,1736699447088,-500.0,0.00010345,2]
[348652694,1736699447097,-500.0,0.00010345,2]
[348652695,1736699447107,-500.0,0.00010345,2]
[348652696,1736699447116,-500.0,0.00010345,2]
[348652697,1736699447126,-500.0,0.00010345,2]
[348652698,1736699447135,-509.14,0.00010345,2]
[348652699,1736699447145,-500.0,0.00010345,2]
[348652700,1736699447154,-500.0,0.00010345,2]
[348652701,1736699447164,-500.0,0.00010345,2]
[348652702,1736699447174,-500.0,0.00010345,2]
[348652703,1736699447183,-500.0,0.00010345,2]
[348652704,1736699447193,-500.0,0.00010345,2]
[348652705,1736699447202,-500.0,0.00010345,2]
[348652706,1736699447212,-660.3,0.00010345,2]
[348652707,1736699447221,-500.0,0.00010345,2]
[348652708,1736699447230,-500.0,0.00010345,2]
[348652709,1736699447239,-500.0,0.00010345,2]
[348652710,1736699447248,-500.0,0.00010345,2]
[348652711,1736699447257,-525.43,0.00010345,2]
[348652712,1736699447267,-500.0,0.00010345,2]
[348652713,1736699447276,-500.0,0.00010345,2]
[348652714,1736699447285,-500.0,0.00010345,2]
[348652715,1736699447294,-500.0,0.00010345,2]
[348652716,1736699447303,-500.0,0.00010345,2]
[348652717,1736699447312,-500.0,0.00010345,2]
[348652718,1736699447321,-500.0,0.00010345,2]
[348652719,1736699447331,-500.0,0.00010345,2]
[348652720,1736699447340,-500.0,0.00010345,2]
[348652721,1736699447348,-500.0,0.00010345,2]
[348652722,1736699447358,-500.0,0.00010345,2]
[348652723,1736699447367,-500.0,0.00010345,2]
[348652724,1736699447376,-500.0,0.00010345,2]
[348652725,1736699447385,-500.0,0.00010345,2]
[348652726,1736699447394,-500.0,0.00010345,2]
[348652727,1736699447403,-502.9,0.00010345,2]
[348652728,1736699447412,-500.0,0.00010345,2]
[348652729,1736699447422,-500.0,0.00010345,2]
[348652730,1736699447431,-500.0,0.00010345,2]
[348652731,1736699447440,-500.0,0.00010345,2]
[348652732,1736699447449,-500.0,0.00010345,2]
[348652733,1736699447458,-500.0,0.00010345,2]
[348652734,1736699447467,-500.0,0.00010345,2]
[348652735,1736699447476,-500.0,0.00010345,2]
[348652736,1736699447487,-500.0,0.00010345,2]
[348652737,1736699447498,-500.0,0.00010345,2]
[348652738,1736699447507,-564.22,0.00010345,2]
[348652739,1736699447516,-500.0,0.00010345,2]
[348652740,1736699447526,-500.0,0.00010345,2]
[348652741,1736699447535,-591.03,0.00010345,2]
[348652742,1736699447545,-500.0,0.00010345,2]
[348652743,1736699447555,-500.0,0.00010345,2]
[348652744,1736699447564,-500.0,0.00010345,2]
[348652745,1736699447574,-500.0,0.00010345,2]
[348652746,1736699447583,-529.3,0.00010345,2]
[348652747,1736699447593,-500.0,0.00010345,2]
[348652748,1736699447602,-500.0,0.00010345,2]
[348652749,1736699447611,-500.0,0.00010345,2]
[348652750,1736699447620,-566.22,0.00010345,2]
[348652751,1736699447630,-500.0,0.00010345,2]
[348652752,1736699447640,-500.0,0.00010345,2]
[348652753,1736699447650,-500.0,0.00010345,2]
[348652754,1736699447660,-648.48,0.00010345,2]
[348652755,1736699447670,-500.0,0.00010345,2]
[348652756,1736699447680,-500.0,0.00010345,2]
[348652757,1736699447693,-551.25,0.00010345,2]
[348652758,1736699447702,-500.0,0.00010345,2]
[348652759,1736699447712,-500.0,0.00010345,2]
[348652760,1736699447721,-500.0,0.00010345,2]
[348652761,1736699447732,-598.89,0.00010345,2]
[348652762,1736699447741,-784.77,0.00010345,2]
[348652763,1736699447750,-640.67,0.00010345,2]
[348652764,1736699447761,-500.0,0.00010345,2]
[348652765,1736699447771,-604.17,0.00010345,2]
[348652766,1736699447781,-500.0,0.00010345,2]
[348652767,1736699447791,-500.0,0.00010345,2]
[348652768,1736699447802,-500.0,0.00010345,2]
[348652769,1736699447812,-500.0,0.00010345,2]
[348652770,1736699447822,-500.0,0.00010345,2]
[348652771,1736699447832,-556.65,0.00010345,2]
[348652772,1736699447841,-500.0,0.00010345,2]
[348652773,1736699447850,-513.2,0.00010345,2]
[348652774,1736699447859,-428.71449693,0.00010345,2]
[348652775,1736699447868,-500.0,0.00010345,2]
[348652776,1736699447878,-500.0,0.00010345,2]
[348652777,1736699447888,-565.97,0.00010345,2]
[348652778,1736699447898,-500.0,0.00010345,2]
[348652779,1736699447907,-554.7,0.00010345,2]
[348652780,1736699447917,-500.0,0.00010345,2]
[348652781,1736699447926,-500.0,0.00010345,2]
[348652782,1736699447935,-500.0,0.00010345,2]
[348652783,1736699447945,-500.0,0.00010345,2]
[348652784,1736699447954,-512.3,0.00010345,2]
[348652785,1736699447964,-500.0,0.00010345,2]
[348652786,1736699447974,-500.0,0.00010345,2]
[348652787,1736699447984,-518.24,0.00010345,2]
[348652788,1736699447993,-500.0,0.00010345,2]
[348652789,1736699448002,-500.0,0.00010345,2]
[348652790,1736699448012,-500.0,0.00010345,2]
[348652791,1736699448022,-500.0,0.00010345,2]
[348652792,1736699448031,-613.02,0.00010345,2]
[348652793,1736699448041,-500.0,0.00010345,2]
[348652794,1736699448050,-500.0,0.00010345,2]
[348652795,1736699448060,-566.44,0.00010345,2]
[348652796,1736699448070,-500.0,0.00010345,2]
[348652797,1736699448079,-500.0,0.00010345,2]
[348652798,1736699448089,-654.62,0.00010345,2]
[348652799,1736699448099,-657.29,0.00010345,2]
[348652800,1736699448109,-500.0,0.00010345,2]
[348652801,1736699448118,-500.0,0.00010345,2]
[348652802,1736699448128,-639.39,0.00010345,2]
[348652803,1736699448137,-500.0,0.00010345,2]
[348652804,1736699448148,-3340.68,0.00010345,2]
[348652805,1736699448158,-500.0,0.00010345,2]
[348652806,1736699448167,-500.0,0.00010345,2]
[348652807,1736699448177,-693.04,0.00010345,2]
[348652808,1736699448187,-643.52,0.00010345,2]
[348652809,1736699448196,-583.35,0.00010345,2]
[348652810,1736699448206,-500.0,0.00010345,2]
[348652811,1736699448215,-2433.16,0.00010345,2]
[348652812,1736699448224,-500.0,0.00010345,2]
[348652813,1736699448234,-500.0,0.00010345,2]
[348652814,1736699448243,-2346.85,0.00010345,2]
[348652815,1736699448253,-500.0,0.00010345,2]
[348652816,1736699448262,-692.94,0.00010345,2]
[348652817,1736699448272,-633.61,0.00010345,2]
[348652818,1736699448282,-672.71,0.00010345,2]
[348652819,1736699448293,-2492.75,0.00010345,2]
[348652820,1736699448303,-500.0,0.00010345,2]
[348652821,1736699448313,-500.0,0.00010345,2]
[348652822,1736699448322,-514.5,0.00010345,2]
[348652823,1736699448332,-555.89,0.00010345,2]
[348652824,1736699448342,-500.0,0.00010345,2]
[348652825,1736699448351,-500.0,0.00010345,2]
[348652826,1736699448361,-1207.03,0.00010345,2]
[348652827,1736699448371,-500.0,0.00010345,2]
[348652828,1736699448381,-650.01,0.00010345,2]
[348652829,1736699448391,-500.0,0.00010345,2]
[348652830,1736699448401,-500.0,0.00010345,2]
[348652831,1736699448410,-707.45,0.00010345,2]
[348652832,1736699448423,-694.57,0.00010345,2]
[348652833,1736699448433,-926.05,0.00010345,2]
[348652834,1736699448443,-954.19,0.00010345,2]
[348652835,1736699448453,-633.58,0.00010345,2]
[348652836,1736699448463,-500.0,0.00010345,2]
[348652837,1736699448472,-598.71,0.00010345,2]
[348652838,1736699448482,-500.0,0.00010345,2]
[348652839,1736699448491,-884.06,0.00010345,2]
[348652840,1736699448501,-500.0,0.00010345,2]
[348652841,1736699448511,-1133.37,0.00010345,2]
[348652842,1736699448521,-500.0,0.00010345,2]
[348652843,1736699448531,-500.0,0.00010345,2]
[348652844,1736699448540,-984.84,0.00010345,2]
[348652845,1736699448551,-516.72,0.00010345,2]
[348652846,1736699448561,-608.56,0.00010345,2]
[348652847,1736699448571,-500.0,0.00010345,2]
[348652848,1736699448581,-500.0,0.00010345,2]
[348652849,1736699448591,-602.82,0.00010345,2]
[348652850,1736699448601,-500.0,0.00010345,2]
[348652851,1736699448611,-1288.71,0.00010345,2]
[348652852,1736699448621,-500.0,0.00010345,2]
[348652853,1736699448630,-500.0,0.00010345,2]
[348652854,1736699448640,-641.03,0.00010345,2]
[348652855,1736699448650,-500.0,0.00010346,2]
[348652856,1736699448660,-516.2403411,0.00010346,2]
[348652857,1736699448672,-500.0,0.00010346,2]
[348652858,1736699448681,-500.0,0.00010346,2]
[348652859,1736699448695,-500.0,0.00010346,2]
[348652860,1736699448705,-500.0,0.00010346,2]
[348652861,1736699448715,-631.52,0.00010346,2]
[348652862,1736699448724,-500.0,0.00010346,2]
[348652863,1736699448734,-549.03,0.00010346,2]
[348652864,1736699448744,-500.0,0.00010346,2]
[348652865,1736699448753,-500.0,0.00010346,2]
[348652866,1736699448764,-973.13,0.00010346,2]
[348652867,1736699448773,-925.07,0.00010346,2]
[348652868,1736699448783,-3144.77,0.00010346,2]
[348652869,1736699448792,-1041.89,0.00010346,2]
[348652870,1736699448801,-2015.67,0.00010346,2]
[348652871,1736699448810,-1197.96,0.00010346,2]
[348652872,1736699448821,-1454.44,0.00010346,2]
[348652873,1736699448830,-500.0,0.00010346,2]
[348652874,1736699448840,-932.77,0.00010346,2]
[348652875,1736699448849,-2213.41,0.00010346,2]
[348652876,1736699448860,-818.36,0.00010346,2]
[348652877,1736699448869,-1034.46,0.00010346,2]
[348652878,1736699448879,-657.66,0.00010347,2]
[348652879,1736699448888,-500.0,0.00010347,2]
[348652880,1736699448898,-705.56,0.00010347,2]
[348652881,1736699448907,-1307.99,0.00010347,2]
[348652882,1736699448916,-1006.99,0.00010347,2]
[348652883,1736699448926,-1789.35,0.00010347,2]
[348652884,1736699448935,-3513.14,0.00010347,2]
[348652885,1736699448945,-779.28,0.00010347,2]
[348652886,1736699448954,-536.0,0.00010347,2]
[348652887,1736699448964,-665.58,0.00010347,2]
[348652888,1736699448973,-570.04,0.00010347,2]
[348652889,1736699448983,-1505.25,0.00010347,2]
[348652890,1736699448992,-500.0,0.00010347,2]
[348652891,1736699449001,-941.29,0.00010347,2]
[348652892,1736699449011,-1739.42,0.00010347,2]
[348652893,1736699449021,-500.0,0.00010347,2]
[348652894,1736699449031,-1000.0,0.00010347,2]
[348652895,1736699449040,-811.37,0.00010347,2]
[348652896,1736699449052,-500.0,0.00010347,2]
[348652897,1736699449062,-2195.66,0.00010347,2]
[348652898,1736699449071,-1934.04,0.00010347,2]
[348652899,1736699449081,-1657.88700681,0.00010362,2]
[348652900,1736699449091,-547.07,0.00010364,2]
[348652901,1736699449100,-500.0,0.00010369,2]
[348652902,1736699449110,-500.0,0.00010369,2]
[348652903,1736699449120,-500.0,0.00010369,2]
[348652904,1736699449129,-808.49,0.00010369,2]
[348652905,1736699449139,-900.33,0.00010369,2]
[348652906,1736699449148,-500.0,0.00010369,2]
[348652907,1736699449158,-1000.0,0.00010378,2]
[348652908,1736699449169,-500.0,0.00010409,2]
[348652909,1736699449178,-778.25,0.00010409,2]
[348652910,1736699449188,-585.78,0.00010409,2]
[348652911,1736699449198,-1000.0,0.00010411,2]
[348652912,1736699449208,-1000.0,0.00010411,2]
[348652913,1736699449218,-1000.0,0.00010411,2]
[348652914,1736699449227,-1000.0,0.00010411,2]
[348652915,1736699449237,-1000.0,0.00010411,2]
[348652916,1736699449248,-1000.0,0.00010411,2]
[348652917,1736699449257,-1000.0,0.00010411,2]
[348652918,1736699449266,-1000.0,0.00010411,2]
[348652919,1736699449276,-982.0,0.00010411,2]
[348652920,1736699449286,-893.01,0.00010429,2]
[348652921,1736699449296,-1657.88700681,0.00010472,2]
[348652922,1736699449306,-35279.58191401,0.000105,2]
[348652923,1736699449315,-1000.0,0.00010521,2]
[348652924,1736699449325,-500.0,0.00010545,2]
[348652925,1736699449334,-1701.60249328,0.00010545,2]
[348652926,1736699450549,-304.2912,8.999e-05,2]
[348652927,1736699450579,-195.7088,8.999e-05,2]
[348652928,1736699450588,-447.99689027,9.273e-05,2]
[348652929,1736699450597,-500.0,9.797e-05,2]
[348652930,1736699450606,-500.0,9.797e-05,2]
[348652931,1736699450616,-809.55,9.798e-05,2]
[348652932,1736699450625,-545.33607628,9.821e-05,2]
[348652933,1736699450634,-502.78,9.997e-05,2]
[348652934,1736699450644,-155.5324787,9.999e-05,2]
[348652935,1736699450653,-212.983273,0.0001007,2]
[348652936,1736699450662,-912.21,0.0001007,2]
[348652937,1736699450673,-500.0,0.00010071,2]
[348652938,1736699450683,-500.0,0.00010071,2]
[348652939,1736699450695,-809.55,0.00010072,2]
[348652940,1736699450705,-500.0,0.00010095,2]
[348652941,1736699450714,-502.78,0.00010271,2]
[348652942,1736699450723,-212.983273,0.00010344,2]
[348652943,1736699450733,-912.21,0.00010344,2]
[348652944,1736699450742,-809.55,0.00010346,2]
[348652945,1736699450751,-500.0,0.00010369,2]
[348652946,1736699450760,-73.13750672,0.00010545,2]
[348652947,1736699450771,-2625.24,0.00010545,2]
[348652948,1736699450781,-1727.74,0.00010545,2]
[348652949,1736699450790,-500.0,0.00010545,2]
[348652950,1736699450799,-1077.0,0.00010545,2]
[348652951,1736699450809,-2536.45,0.00010545,2]
[348652952,1736699450820,-500.0,0.00010545,2]
[348652953,1736699450829,-1044.59,0.00010545,2]
[348652954,1736699450839,-502.92,0.00010545,2]
[348652955,1736699450848,-578.96,0.00010545,2]
[348652956,1736699450865,-943.76,0.00010545,2]
[348652957,1736699450877,-502.78,0.00010545,2]
[348652958,1736699450886,-500.0,0.00010546,2]
[348652959,1736699450896,-500.0,0.00010546,2]
[348652960,1736699450905,-500.0,0.00010546,2]
[348652961,1736699450916,-432.79397846,0.00010546,2]
[348652962,1736699450926,-500.0,0.00010546,2]
[348652963,1736699450936,-544.25549633,0.00010546,2]
[348652964,1736699450945,-500.0,0.00010546,2]
[348652965,1736699450955,-500.0,0.00010546,2]
[348652966,1736699450965,-500.0,0.00010546,2]
[348652967,1736699450975,-500.0,0.00010546,2]
[348652968,1736699450985,-500.0,0.00010546,2]
[348652969,1736699450994,-500.0,0.00010546,2]
[348652970,1736699451005,-500.0,0.00010546,2]
[348652971,1736699451015,-891.71,0.00010546,2]
[348652972,1736699451025,-500.0,0.00010546,2]
[348652973,1736699451034,-500.0,0.00010546,2]
[348652974,1736699451044,-500.0,0.00010546,2]
[348652975,1736699451055,-500.0,0.00010546,2]
[348652976,1736699451066,-500.0,0.00010546,2]
[348652977,1736699451075,-500.0,0.00010546,2]
[348652978,1736699451085,-500.0,0.00010546,2]
[348652979,1736699451094,-500.0,0.00010546,2]
[348652980,1736699451103,-500.0,0.00010546,2]
[348652981,1736699451112,-500.0,0.00010546,2]
[348652982,1736699451122,-559.86,0.00010546,2]
[348652983,1736699451131,-500.0,0.00010546,2]
[348652984,1736699451141,-510.70732432,0.00010546,2]
[348652985,1736699451150,-562.29768791,0.00010546,2]
[348652986,1736699451159,-459.07305688,0.00010546,2]
[348652987,1736699451169,-500.0,0.00010546,2]
[348652988,1736699451179,-500.0,0.00010546,2]
[348652989,1736699451189,-500.0,0.00010546,2]
[348652990,1736699451198,-500.0,0.00010546,2]
[348652991,1736699451208,-510.43601422,0.00010546,2]
[348652992,1736699451217,-500.0,0.00010546,2]
[348652993,1736699451226,-500.0,0.00010546,2]
[348652994,1736699451235,-500.0,0.00010546,2]
[348652995,1736699451245,-500.0,0.00010546,2]
[348652996,1736699451255,-298.44538439,0.00010546,2]
[348652997,1736699451264,-406.3507197,0.00010546,2]
[348652998,1736699451274,-500.0,0.00010546,2]
[348652999,1736699451284,-633.05,0.00010546,2]
[348653000,1736699451293,-500.0,0.00010546,2]
[348653001,1736699451302,-500.0,0.00010546,2]
[348653002,1736699451311,-500.0,0.00010546,2]
[348653003,1736699451321,-500.0,0.00010546,2]
[348653004,1736699451330,-508.36826225,0.00010546,2]
[348653005,1736699451339,-500.0,0.00010546,2]
[348653006,1736699451348,-500.0,0.00010546,2]
[348653007,1736699451358,-461.59212791,0.00010546,2]
[348653008,1736699451371,-38.40787209,0.00010546,2]
[348653009,1736699451380,-500.0,0.00010546,2]
[348653010,1736699451391,-500.0,0.00010546,2]
[348653011,1736699451402,-500.0,0.00010546,2]
[348653012,1736699451412,-500.0,0.00010546,2]
[348653013,1736699451423,-500.0,0.00010546,2]
[348653014,1736699451433,-428.34758759,0.00010546,2]
[348653015,1736699451443,-500.0,0.00010546,2]
[348653016,1736699451452,-500.0,0.00010546,2]
[348653017,1736699451462,-500.0,0.00010546,2]
[348653018,1736699451473,-500.0,0.00010546,2]
[348653019,1736699451484,-500.0,0.00010546,2]
[348653020,1736699451493,-500.0,0.00010546,2]
[348653021,1736699451503,-500.0,0.00010546,2]
[348653022,1736699451513,-500.0,0.00010546,2]
[348653023,1736699451523,-500.0,0.00010546,2]
[348653024,1736699451532,-500.0,0.00010546,2]
[348653025,1736699451541,-500.0,0.00010546,2]
[348653026,1736699451551,-500.0,0.00010546,2]
[348653027,1736699451559,-500.0,0.00010546,2]
[348653028,1736699451569,-375.0,0.00010546,2]
[348653029,1736699451579,-500.0,0.00010546,2]
[348653030,1736699451589,-570.51,0.00010546,2]
[348653031,1736699451598,-500.0,0.00010546,2]
[348653032,1736699451608,-502.52434277,0.00010546,2]
[348653033,1736699451618,-500.0,0.00010546,2]
[348653034,1736699451627,-500.0,0.00010546,2]
[348653035,1736699451637,-500.0,0.00010546,2]
[348653036,1736699451646,-500.0,0.00010546,2]
[348653037,1736699451656,-503.7760981,0.00010546,2]
[348653038,1736699451665,-500.0,0.00010546,2]
[348653039,1736699451675,-500.0,0.00010546,2]
[348653040,1736699451687,-500.0,0.00010546,2]
[348653041,1736699451698,-500.0,0.00010546,2]
[348653042,1736699451707,-500.0,0.00010546,2]
[348653043,1736699451721,-500.0,0.00010546,7]
[348653044,1736699451732,-500.0,0.00010546,2]
[348653045,1736699451742,-500.0,0.00010546,2]
[348653046,1736699451752,-500.0,0.00010546,2]
[348653047,1736699451762,-500.0,0.00010546,2]
[348653048,1736699451771,-500.0,0.00010546,2]
[348653049,1736699451781,-325.08434649,0.00010546,2]
[348653050,1736699451791,-510.62892736,0.00010546,2]
[348653051,1736699451800,-500.0,0.00010546,2]
[348653052,1736699451810,-500.0,0.00010546,2]
[348653053,1736699451822,-500.0,0.00010546,2]
[348653054,1736699451832,-507.1812232,0.00010546,2]
[348653055,1736699451842,-500.0,0.00010546,2]
[348653056,1736699451851,-500.0,0.00010546,2]
[348653057,1736699451861,-500.0,0.00010546,2]
[348653058,1736699451870,-505.37651756,0.00010546,2]
[348653059,1736699451880,-500.0,0.00010546,2]
[348653060,1736699451890,-500.0,0.00010546,2]
[348653061,1736699451899,-500.0,0.00010546,2]
[348653062,1736699451908,-500.0,0.00010546,2]
[348653063,1736699451918,-500.0,0.00010546,2]
[348653064,1736699451928,-500.0,0.00010546,2]
[348653065,1736699451938,-505.73280413,0.00010546,2]
[348653066,1736699451948,-500.0,0.00010546,2]
[348653067,1736699451958,-500.0,0.00010546,2]
[348653068,1736699451967,-500.0,0.00010546,2]
[348653069,1736699451977,-159.04770325,0.00010546,2]
[348653070,1736699451987,-500.0,0.00010546,2]
[348653071,1736699451997,-500.0,0.00010546,2]
[348653072,1736699452007,-500.0,0.00010546,2]
[348653073,1736699452017,-500.0,0.00010546,2]
[348653074,1736699452027,-500.0,0.00010546,2]
[348653075,1736699452037,-500.0,0.00010546,2]
[348653076,1736699452047,-500.0,0.00010546,2]
[348653077,1736699452056,-640.03387738,0.00010546,2]
[348653078,1736699452066,-500.0,0.00010546,2]
[348653079,1736699452076,-500.0,0.00010546,2]
[348653080,1736699452085,-507.59500827,0.00010546,2]
[348653081,1736699452095,-226.83881288,0.00010546,2]
[348653082,1736699452105,-500.0,0.00010546,2]
[348653083,1736699452115,-452.7286439,0.00010546,2]
[348653084,1736699452125,-501.53355951,0.00010546,2]
[348653085,1736699452135,-500.0,0.00010546,2]
[348653086,1736699452145,-500.0,0.00010546,2]
[348653087,1736699452155,-500.0,0.00010546,2]
[348653088,1736699452165,-289.49375737,0.00010546,2]
[348653089,1736699452175,-500.0,0.00010546,2]
[348653090,1736699452185,-500.0,0.00010546,2]
[348653091,1736699452195,-391.06799415,0.00010546,2]
[348653092,1736699452246,-500.0,0.00010071,2]
[348653093,1736699452256,-108.93200585,0.00010546,2]
[348653094,1736699452266,-500.0,0.00010546,2]
[348653095,1736699452276,-502.78210268,0.00010546,2]
[348653096,1736699452286,-500.0,0.00010546,2]
[348653097,1736699452295,-500.0,0.00010546,2]
[348653098,1736699452305,-500.0,0.00010546,2]
[348653099,1736699452315,-500.0,0.00010546,2]
[348653100,1736699452324,-500.0,0.00010546,2]
[348653101,1736699452333,-500.0,0.00010546,2]
[348653102,1736699452343,-500.0,0.00010546,2]
[348653103,1736699452353,-500.0,0.00010546,2]
[348653104,1736699452362,-501.59710081,0.00010546,2]
[348653105,1736699452372,-500.0,0.00010546,2]
[348653106,1736699452382,-500.0,0.00010546,2]
[348653107,1736699452391,-500.0,0.00010546,2]
[348653108,1736699452401,-500.0,0.00010546,2]
[348653109,1736699452411,-500.0,0.00010546,2]
[348653110,1736699452422,-1657.88700681,0.00010583,2]
[348653111,1736699452431,-716.08,0.00010618,2]
[348653112,1736699452441,-576.93,0.00010618,2]
[348653113,1736699452450,-1006.35,0.00010618,2]
[348653114,1736699452460,-783.3,0.00010618,2]
[348653115,1736699452470,-755.32,0.00010618,2]
[348653116,1736699452479,-1736.88,0.00010618,2]
[348653117,1736699452489,-2925.14178385,0.00010618,2]
[348653118,1736699453618,500.0,8.9e-05,2]
[348653119,1736699460218,18882.9509,8.9e-05,2]
[348653120,1736699467406,500.0,0.00023,120]
[348653121,1736699467929,500.0,0.00023,120]
[348653122,1736699468424,500.0,0.00023,120]
[348653123,1736699468889,500.0,0.00023,120]
[348653124,1736699469353,500.0,0.00023,120]
[348653125,1736699469880,500.0,0.00023,120]
[348653126,1736699470470,519.57978292,0.00023,120]
[348653127,1736699493994,7954.7903,8.9e-05,2]
[348653157,1736699523009,2569.836,8.9e-05,2]
[348653159,1736699530416,1083.9231,8.9e-05,2]
[348653160,1736699536791,1000.0,8.9e-05,2]
[348653161,1736699556841,5000.0,8.9e-05,2]
[348653162,1736699571367,2862.5863,8.9e-05,2]
[348653163,1736699573244,5156.2646,8.9e-05,2]
[348653164,1736699591703,2500.0,8.9e-05,2]
[348653165,1736699592505,500.0,0.00023,120]
[348653166,1736699596785,2000.0,0.00023,120]
[348653167,1736699601985,500.0,0.00023,120]
[348653168,1736699607710,200.0,0.00023,120]
[348653169,1736699687378,5645.2151,8.9e-05,2]
[348653170,1736699878723,1267.9896,8.899e-05,2]
[348653172,1736699891595,7745.9483,8.899e-05,2]
[348653173,1736699913283,1000.0,0.00021917,120]
[348653174,1736699913537,1000.0,0.00021917,120]
[348653175,1736699913840,946.17578027,0.00021917,120]
[348653176,1736699959954,1000.0,0.00023,120]
[348653177,1736700020620,1000.0,8.807e-05,2]
[348653178,1736700036643,3000.0,0.00023,120]
[348653179,1736700049048,661.36,8.763e-05,2]
[348653180,1736700069039,2000.0,8e-05,2]
[348653181,1736700076058,2839.6973,8.899e-05,2]
[348653182,1736700090765,150.0,0.00022661,120]
[348653183,1736700094228,4000.0,0.00023,120]
[348653184,1736700113676,27614.0,8.909e-05,2]
[348653185,1736700169482,1946.9486,8.899e-05,2]
[348653186,1736700174513,3445.0,0.00023,120]
[348653188,1736700187847,2500.0,8e-05,2]